[Event "European School-ch 2019"]
[Site "Mamaia"]
[Date "2019.05.31"]
[Round "1.10"]
[White "Dotsenko, Makar"]
[Black "Ochedzan, Tymon"]
[Result "0-1"]
[ECO "A50"]
[WhiteElo "1610"]
[BlackElo "2064"]
[Annotator "NA"]
[PlyCount "68"]
[EventDate "2019.05.31"]
[EventType "swiss"]
[EventCountry "ROU"]
[SourceTitle "playchess.com"]
[Source "ChessBase"]
[SourceQuality "1"]
[TimeControl "40/5400+30:1800+30"]

1. d4 {[%emt 0:00:01]} Nf6 {[%emt 0:00:00]} 2. c4 {[%emt 0:00:11]} g6 {[%emt 0:00:00]} 3. f3 {[%emt 0:00:16]} Bg7 {[%emt 0:02:52]} 4. e4 {[%emt 0:00:34]} d6 {[%emt 0:02:48]} 5. Be3 {[%emt 0:01:16]} O-O {[%emt 0:02:47]} 6. Nc3 {[%emt 0:02:07]} c5 {[%emt 0:00:53]} 7. Nge2 {[%emt 0:02:09]} Qa5 {[%emt 0:02:07]} 8. Qd2 {[%emt 0:04:09]} Nc6 {[%emt 0:01:30]} 9. d5 {[%emt 0:12:52]} Ne5 {[%emt 0:01:25]} 10. Ng3 {[%emt 0:09:06]} h5 {[%emt 0:04:36]} 11. Be2 {[%emt 0:08:51]} a6 {[%emt 0:10:43]} 12. O-O {[%emt 0:04:47]} Bd7 {[%emt 0:03:03]} 13. h3 {[%emt 0:08:42]} h4 {[%emt 0:14:28]} 14. f4 {[%emt 0:11:21]} Nxc4 {[%emt 0:06:45]} 15. Bxc4 {[%emt 0:00:06]} hxg3 {[%emt 0:00:22]} 16. e5 {[%emt 0:03:13]} Nh7 {[%emt 0:04:50]} 17. e6 {[%emt 0:05:34]} fxe6 {[%emt 0:04:44]} 18. dxe6 {[%emt 0:02:10]} Bb5 {[%emt 0:03:11]} 19. Bxb5 {[%emt 0:02:30]} Bxc3 {[%emt 0:01:12]} 20. bxc3 {[%emt 0:00:48]} Qxb5 {[%emt 0:00:36]} 21. Qc2 {[%emt 0:06:47]} Rf5 {[%emt 0:01:02]} 22. c4 {[%emt 0:01:34]} Qc6 {[%emt 0:01:39]} 23. Rf3 {[%emt 0:00:31]} Nf6 {[%emt 0:04:01]} 24. Rxg3 {[%emt 0:01:49]} Kh7 {[%emt 0:01:32]} 25. Rxg6 {[%emt 0:04:30]} Kxg6 {[%emt 0:00:44]} 26. g4 {[%emt 0:00:07]} Qe4 {[%emt 0:01:34]} 27. gxf5+ {[%emt 0:01:22]} Kxf5 {[%emt 0:00:42]} 28. Qxe4+ {[%emt 0:01:20]} Nxe4 {[%emt 0:00:52]} 29. Rb1 {[%emt 0:02:59]} b5 {[%emt 0:04:25]} 30. cxb5 {[%emt 0:00:09]} axb5 31. Rxb5 {[%emt 0:00:33]} Rxa2 {[%emt 0:00:07]} 32. h4 {[%emt 0:01:54]} Ng3 {[%emt 0:03:55]} 33. Rb7 {[%emt 0:01:34]} Kxe6 {[%emt 0:01:05]} 34. h5 {[%emt 0:00:35]} Nxh5 {[%emt 0:00:40]} 0-1

[Event "European School-ch 2019"]
[Site "Mamaia"]
[Date "2019.05.31"]
[Round "1.11"]
[White "Balan, Bogdan"]
[Black "Styazhkin, Nikita"]
[Result "1-0"]
[ECO "A52"]
[WhiteElo "2027"]
[BlackElo "1525"]
[Annotator "NA"]
[PlyCount "58"]
[EventDate "2019.05.31"]
[EventType "swiss"]
[EventCountry "ROU"]
[SourceTitle "playchess.com"]
[Source "ChessBase"]
[SourceQuality "1"]
[TimeControl "40/5400+30:1800+30"]

1. d4 {[%emt 0:00:00]} Nf6 {[%emt 0:00:00]} 2. c4 {[%emt 0:00:00]} e5 {[%emt 0:00:00]} 3. dxe5 {[%emt 0:00:07]} Ng4 {[%emt 0:00:00]} 4. Nf3 {[%emt 0:00:15]} Bc5 {[%emt 0:00:00]} 5. e3 {[%emt 0:00:16]} Nc6 {[%emt 0:00:00]} 6. Qd5 {[%emt 0:01:36]} Qe7 {[%emt 0:00:12]} 7. a3 {[%emt 0:02:26]} a5 {[%emt 0:00:08]} 8. b3 {[%emt 0:02:15]} O-O {[%emt 0:00:42]} 9. Bb2 {[%emt 0:00:52]} Re8 {[%emt 0:00:07]} 10. Nbd2 {[%emt 0:18:21]} Ngxe5 {[%emt 0:00:25]} 11. Ne4 {[%emt 0:07:31]} Ba7 {[%emt 0:02:27]} 12. c5 {[%emt 0:16:42]} b6 {[%emt 0:00:16]} 13. Nxe5 {[%emt 0:03:38]} Nxe5 {[%emt 0:00:23]} 14. Qxa8 {[%emt 0:05:02]} Nc6 {[%emt 0:00:34]} 15. Ng3 {[%emt 0:06:18]} bxc5 {[%emt 0:06:35]} 16. Bc4 {[%emt 0:04:57]} Ba6 {[%emt 0:02:24]} 17. Qxe8+ {[%emt 0:00:19]} Qxe8 {[%emt 0:00:02]} 18. Bxa6 {[%emt 0:00:12]} d5 {[%emt 0:00:13]} 19. Bb5 {[%emt 0:00:46]} Qe6 {[%emt 0:00:07]} 20. Bxc6 {[%emt 0:00:20]} Qxc6 {[%emt 0:00:05]} 21. O-O {[%emt 0:00:14]} Qb5 {[%emt 0:00:07]} 22. Rfb1 {[%emt 0:01:00]} Bb6 {[%emt 0:00:44]} 23. Nf5 {[%emt 0:00:21]} c6 {[%emt 0:00:58]} 24. Nxg7 {[%emt 0:01:10]} d4 {[%emt 0:00:05]} 25. Nf5 {[%emt 0:00:54]} d3 {[%emt 0:00:49]} 26. a4 {[%emt 0:00:46]} Qb4 {[%emt 0:00:29]} 27. Ne7+ {[%emt 0:00:42]} Kf8 {[%emt 0:00:21]} 28. Nxc6 {[%emt 0:00:18]} Qe4 {[%emt 0:00:06]} 29. Ne5 {[%emt 0:00:20]} Ke7 {[%emt 0:00:22]} 1-0

[Event "European School-ch 2019"]
[Site "Mamaia"]
[Date "2019.05.31"]
[Round "1.12"]
[White "Silich, Yahor"]
[Black "Pancewicz, Szymon"]
[Result "1-0"]
[ECO "B30"]
[WhiteElo "2170"]
[BlackElo "1572"]
[Annotator "ChessBase"]
[PlyCount "84"]
[EventDate "2019.05.31"]
[EventType "swiss"]
[EventCountry "ROU"]
[SourceTitle "playchess.com"]
[Source "ChessBase"]
[SourceQuality "1"]
[TimeControl "40/5400+30:1800+30"]

1. e4 {[%emt 0:00:00]} c5 {[%emt 0:00:06]} 2. Nf3 {[%emt 0:00:30]} Nc6 {[%emt 0:01:49]} 3. Bb5 {[%emt 0:00:52]} e6 {[%emt 0:00:59]} 4. O-O {[%emt 0:00:28]} Nge7 {[%emt 0:00:54]} 5. Re1 {[%emt 0:00:49]} a6 {[%emt 0:02:11]} 6. Bxc6 {[%emt 0:00:43]} Nxc6 {[%emt 0:02:20]} 7. d4 {[%emt 0:01:25]} cxd4 {[%emt 0:07:26]} 8. Nxd4 {[%emt 0:00:35]} Be7 {[%emt 0:01:42]} 9. Nxc6 {[%emt 0:07:09]} dxc6 {[%emt 0:07:56]} 10. Qh5 {[%emt 0:03:02]} O-O {[%emt 0:05:39]} 11. e5 {[%emt 0:04:21]} c5 {[%emt 0:05:05]} 12. Nc3 {[%emt 0:01:56]} b5 {[%emt 0:02:32]} 13. Qg4 {[%emt 0:02:30]} Kh8 {[%emt 0:02:12]} 14. Bf4 {[%emt 0:03:05]} Bb7 {[%emt 0:03:39]} 15. Rad1 {[%emt 0:00:57]} Qc7 {[%emt 0:05:52]} 16. Rd3 {[%emt 0:02:32]} Rad8 {[%emt 0:08:23]} 17. Rh3 {[%emt 0:02:09]} g6 {[%emt 0:01:31]} 18. Rh6 {[%emt 0:06:02]} Kg7 {[%emt 0:06:56]} 19. Rh3 {[%emt 0:19:08]} Rh8 {[%emt 0:04:34]} 20. Bh6+ {[%emt 0:00:54]} Kg8 {[%emt 0:00:03]} 21. Rf3 {[%emt 0:06:55]} Bxf3 {[%emt 0:06:54]} 22. Qxf3 {[%emt 0:00:07]} b4 {[%emt 0:01:55]} 23. Nb1 {[%emt 0:06:45]} Bf8 {[%emt 0:03:05]} 24. Bf4 {[%emt 0:01:56]} h5 {[%emt 0:02:39]} 25. Nd2 {[%emt 0:01:36]} Rd4 {[%emt 0:04:07]} 26. Ne4 {[%emt 0:01:53]} Be7 {[%emt 0:01:34]} 27. c3 {[%emt 0:03:18]} bxc3 {[%emt 0:00:36]} 28. bxc3 {[%emt 0:00:02]} Rd5 {[%emt 0:01:47]} 29. Qe3 {[%emt 0:12:05]} Kg7 {[%emt 0:01:53]} 30. Nf6 {[%emt 0:01:20]} Rdd8 {[%emt 0:00:58]} 31. Bg5 {[%emt 0:01:20]} c4 {[%emt 0:01:39]} 32. Qf4 {[%emt 0:00:33]} Rd3 {[%emt 0:01:35]} 33. Bh6+ {[%emt 0:00:06]} Rxh6 {[%emt 0:00:23]} 34. Ne8+ {[%emt 0:00:03]} Kg8 {[%emt 0:00:16]} 35. Nxc7 {[%emt 0:00:24]} g5 {[%emt 0:00:16]} 36. Qxc4 {[%emt 0:00:16]} Rd7 {[%emt 0:00:20]} 37. Nxa6 {[%emt 0:00:40]} Rh8 {[%emt 0:00:43]} 38. Qc8+ {[%emt 0:00:39]} Rd8 {[%emt 0:00:02]} 39. Qc7 {[%emt 0:00:06]} Kf8 {[%emt 0:00:54]} 40. Nc5 {[%emt 0:00:49]} g4 {[%emt 0:00:29]} 41. a4 {[%emt 0:30:59]} Bg5 {[%emt 0:30:14]} 42. a5 {[%emt 0:00:14]} Kg7 {[%emt 0:00:31]} 1-0

[Event "European School-ch 2019"]
[Site "Mamaia"]
[Date "2019.05.31"]
[Round "1.13"]
[White "Kan, Toby"]
[Black "Creanga, Robert-Ionut"]
[Result "0-1"]
[ECO "B07"]
[WhiteElo "1550"]
[BlackElo "2128"]
[Annotator "ChessBase"]
[PlyCount "136"]
[EventDate "2019.05.31"]
[EventType "swiss"]
[EventCountry "ROU"]
[SourceTitle "playchess.com"]
[Source "ChessBase"]
[SourceQuality "1"]
[TimeControl "40/5400+30:1800+30"]

1. e4 {[%emt 0:00:00]} d6 {[%emt 0:00:00]} 2. d4 {[%emt 0:00:00]} Nf6 {[%emt 0:00:00]} 3. Nc3 {[%emt 0:00:00]} g6 {[%emt 0:00:00]} 4. Bg5 {[%emt 0:00:00]} Bg7 {[%emt 0:00:36]} 5. Qd2 {[%emt 0:00:05]} h6 {[%emt 0:00:07]} 6. Bh4 {[%emt 0:00:05]} O-O {[%emt 0:05:17]} 7. O-O-O {[%emt 0:05:40]} c6 {[%emt 0:03:25]} 8. f3 {[%emt 0:00:51]} b5 {[%emt 0:07:43]} 9. Bd3 {[%emt 0:01:55]} b4 {[%emt 0:11:10]} 10. Nce2 {[%emt 0:00:29]} Qb6 {[%emt 0:14:41]} 11. g4 {[%emt 0:03:52]} Nbd7 {[%emt 0:09:46]} 12. g5 {[%emt 0:02:20]} hxg5 {[%emt 0:04:30]} 13. Bxg5 {[%emt 0:02:20]} Re8 {[%emt 0:04:06]} 14. h4 {[%emt 0:04:03]} Nh5 {[%emt 0:06:11]} 15. Bc4 {[%emt 0:02:38]} e5 {[%emt 0:10:15]} 16. Be3 {[%emt 0:01:12]} Qb7 {[%emt 0:05:17]} 17. d5 {[%emt 0:06:21]} c5 {[%emt 0:02:42]} 18. Qd3 {[%emt 0:00:40]} a6 {[%emt 0:01:48]} 19. Bb3 {[%emt 0:02:36]} Nb6 {[%emt 0:01:24]} 20. f4 {[%emt 0:01:42]} Bd7 {[%emt 0:03:01]} 21. fxe5 {[%emt 0:04:19]} Bb5 {[%emt 0:01:49]} 22. c4 {[%emt 0:00:23]} bxc3 {[%emt 0:00:28]} 23. Qxc3 {[%emt 0:00:30]} Bxe5 {[%emt 0:00:10]} 24. Qd2 {[%emt 0:00:57]} Bc4 {[%emt 0:04:47]} 25. Qc2 {[%emt 0:01:19]} Bxe2 {[%emt 0:01:27]} 26. Nxe2 {[%emt 0:00:28]} c4 {[%emt 0:00:28]} 27. Bxb6 {[%emt 0:02:04]} cxb3 {[%emt 0:00:29]} 28. Qxb3 {[%emt 0:00:52]} Rab8 {[%emt 0:00:37]} 29. Bd4 {[%emt 0:00:51]} Qxb3 {[%emt 0:00:16]} 30. axb3 {[%emt 0:00:12]} Rxb3 {[%emt 0:00:07]} 31. Kc2 {[%emt 0:00:38]} Rf3 {[%emt 0:01:47]} 32. Rd3 {[%emt 0:00:29]} Rxd3 {[%emt 0:00:22]} 33. Kxd3 {[%emt 0:00:09]} Bf6 {[%emt 0:00:47]} 34. Bxf6 {[%emt 0:01:48]} Nxf6 {[%emt 0:00:02]} 35. Ng3 {[%emt 0:00:21]} Rb8 {[%emt 0:00:28]} 36. Kc3 {[%emt 0:01:11]} a5 {[%emt 0:00:44]} 37. Ra1 {[%emt 0:00:54]} Rb5 {[%emt 0:00:13]} 38. Ra4 {[%emt 0:01:17]} Nd7 {[%emt 0:01:02]} 39. Ne2 {[%emt 0:03:06]} Nc5 {[%emt 0:00:47]} 40. Rc4 {[%emt 0:02:00]} Rb3+ {[%emt 0:00:29]} 41. Kc2 {[%emt 0:30:23]} Rb4 {[%emt 0:10:05]} 42. Rxb4 {[%emt 0:00:00]} axb4 {[%emt 0:00:01]} 43. Ng3 {[%emt 0:00:00]} Kg7 {[%emt 0:03:04]} 44. Kd2 {[%emt 0:00:00]} Kf6 {[%emt 0:01:15]} 45. Ke2 {[%emt 0:00:00]} Ke5 {[%emt 0:01:40]} 46. Ke3 {[%emt 0:00:00]} Na4 {[%emt 0:12:00]} 47. Ne2 {[%emt 0:00:00]} Nxb2 {[%emt 0:00:36]} 48. Nc1 {[%emt 0:00:00]} Nd1+ {[%emt 0:02:10]} 49. Kd3 {[%emt 0:00:00]} Nf2+ {[%emt 0:01:12]} 50. Ke3 {[%emt 0:00:00]} Nxe4 {[%emt 0:00:41]} 51. Nd3+ {[%emt 0:00:00]} Kxd5 {[%emt 0:00:07]} 52. Nxb4+ {[%emt 0:00:00]} Kc4 {[%emt 0:01:03]} 53. Kxe4 {[%emt 0:00:00]} Kxb4 {[%emt 0:00:01]} 54. Kd5 {[%emt 0:00:00]} f5 {[%emt 0:00:09]} 55. Kxd6 {[%emt 0:00:00]} f4 {[%emt 0:00:03]} 56. Ke6 {[%emt 0:00:00]} f3 {[%emt 0:00:05]} 57. Kf6 {[%emt 0:00:00]} f2 {[%emt 0:00:03]} 58. Kxg6 {[%emt 0:00:00]} f1=Q {[%emt 0:00:05]} 59. h5 {[%emt 0:00:00]} Qf8 {[%emt 0:00:26]} 60. Kh7 {[%emt 0:00:00]} Kc5 {[%emt 0:00:11]} 61. Kg6 {[%emt 0:00:00]} Qh8 {[%emt 0:00:06]} 62. h6 {[%emt 0:00:00]} Kd6 {[%emt 0:00:05]} 63. Kf7 {[%emt 0:00:00]} Qxh6 {[%emt 0:00:05]} 64. Kg8 {[%emt 0:00:00]} Qf6 {[%emt 0:00:13]} 65. Kh7 {[%emt 0:00:00]} Qg5 {[%emt 0:00:04]} 66. Kh8 {[%emt 0:00:00]} Ke7 {[%emt 0:00:01]} 67. Kh7 {[%emt 0:00:00]} Kf8 {[%emt 0:00:06]} 68. Kh8 {[%emt 0:00:00]} Qh6# {[%emt 0:00:03]} 0-1

[Event "European School-ch 2019"]
[Site "Mamaia"]
[Date "2019.05.31"]
[Round "1.14"]
[White "Tashev, Aleksandar"]
[Black "Zheng, Jerry Z"]
[Result "1-0"]
[ECO "A05"]
[WhiteElo "2106"]
[BlackElo "1520"]
[Annotator "ChessBase"]
[PlyCount "65"]
[EventDate "2019.05.31"]
[EventType "swiss"]
[EventCountry "ROU"]
[SourceTitle "playchess.com"]
[Source "ChessBase"]
[SourceQuality "1"]
[TimeControl "40/5400+30:1800+30"]

1. Nf3 {[%emt 0:00:00]} Nf6 {[%emt 0:00:00]} 2. g3 {[%emt 0:00:00]} e6 {[%emt 0:00:00]} 3. Bg2 {[%emt 0:00:30]} Be7 {[%emt 0:00:29]} 4. O-O {[%emt 0:00:53]} d5 {[%emt 0:00:17]} 5. d4 {[%emt 0:01:43]} b6 {[%emt 0:00:27]} 6. c4 {[%emt 0:00:52]} Bb7 {[%emt 0:01:09]} 7. Nc3 {[%emt 0:01:08]} Nbd7 {[%emt 0:02:41]} 8. Ne5 {[%emt 0:01:57]} c6 {[%emt 0:06:09]} 9. e4 {[%emt 0:03:07]} dxe4 {[%emt 0:07:08]} 10. Nxe4 {[%emt 0:02:19]} Nxe4 {[%emt 0:02:55]} 11. Bxe4 {[%emt 0:01:00]} Qc7 {[%emt 0:02:31]} 12. Bf4 {[%emt 0:11:02]} Bd6 {[%emt 0:03:21]} 13. Qf3 {[%emt 0:08:27]} Nxe5 {[%emt 0:05:50]} 14. dxe5 {[%emt 0:01:58]} Bxe5 {[%emt 0:08:54]} 15. Bxe5 {[%emt 0:03:10]} Qxe5 {[%emt 0:00:40]} 16. Bxc6+ {[%emt 0:01:38]} Bxc6 {[%emt 0:00:17]} 17. Qxc6+ {[%emt 0:00:08]} Ke7 {[%emt 0:00:44]} 18. Rae1 {[%emt 0:09:02]} Qd6 {[%emt 0:02:43]} 19. Qb7+ {[%emt 0:01:27]} Qd7 {[%emt 0:00:52]} 20. Qf3 {[%emt 0:01:06]} Rac8 {[%emt 0:03:30]} 21. Qa3+ {[%emt 0:02:22]} Kf6 {[%emt 0:03:40]} 22. Re4 {[%emt 0:02:26]} Rhd8 {[%emt 0:07:55]} 23. Qc3+ {[%emt 0:03:17]} Ke7 {[%emt 0:04:11]} 24. Qxg7 {[%emt 0:00:50]} Qa4 {[%emt 0:05:28]} 25. Rfe1 {[%emt 0:05:30]} Rc6 {[%emt 0:03:52]} 26. Qg5+ {[%emt 0:09:14]} Ke8 {[%emt 0:00:43]} 27. Rf4 {[%emt 0:00:33]} Qb4 {[%emt 0:02:26]} 28. Qg8+ {[%emt 0:01:26]} Qf8 {[%emt 0:00:55]} 29. Qxh7 {[%emt 0:00:38]} Rd2 {[%emt 0:01:56]} 30. Rg4 {[%emt 0:04:04]} Qc5 {[%emt 0:04:05]} 31. Rg8+ {[%emt 0:01:23]} Ke7 {[%emt 0:00:53]} 32. Qh4+ {[%emt 0:00:22]} Kd6 {[%emt 0:02:20]} 33. Qd8# {[%emt 0:00:18]} 1-0

[Event "European School-ch 2019"]
[Site "Mamaia"]
[Date "2019.05.31"]
[Round "1.15"]
[White "Gimenez Sanchez, Leo"]
[Black "Levin, Guy"]
[Result "0-1"]
[ECO "B90"]
[WhiteElo "1475"]
[BlackElo "2052"]
[Annotator "NA"]
[PlyCount "70"]
[EventDate "2019.05.31"]
[EventType "swiss"]
[EventCountry "ROU"]
[SourceTitle "playchess.com"]
[Source "ChessBase"]
[SourceQuality "1"]
[TimeControl "40/5400+30:1800+30"]

1. e4 {[%emt 0:00:00]} c5 {[%emt 0:00:00]} 2. Nf3 {[%emt 0:01:27]} d6 {[%emt 0:00:00]} 3. d4 {[%emt 0:02:10]} cxd4 {[%emt 0:00:00]} 4. Nxd4 {[%emt 0:01:13]} Nf6 {[%emt 0:00:00]} 5. Nc3 {[%emt 0:01:59]} a6 {[%emt 0:00:00]} 6. f3 {[%emt 0:02:02]} e5 {[%emt 0:00:14]} 7. Nb3 {[%emt 0:01:49]} Be7 {[%emt 0:00:18]} 8. Be3 {[%emt 0:01:31]} Be6 {[%emt 0:00:20]} 9. Qd2 {[%emt 0:02:17]} O-O {[%emt 0:00:28]} 10. O-O-O {[%emt 0:01:40]} Nbd7 {[%emt 0:00:26]} 11. g4 {[%emt 0:06:50]} b5 {[%emt 0:00:18]} 12. Qf2 {[%emt 0:01:35]} Qc7 {[%emt 0:05:41]} 13. Nd5 {[%emt 0:09:38]} Bxd5 {[%emt 0:01:17]} 14. exd5 {[%emt 0:02:41]} a5 {[%emt 0:03:42]} 15. g5 {[%emt 0:05:18]} Nh5 {[%emt 0:01:07]} 16. Bxb5 {[%emt 0:05:26]} a4 {[%emt 0:00:16]} 17. Nd2 {[%emt 0:02:02]} a3 {[%emt 0:04:25]} 18. b3 {[%emt 0:04:09]} f5 {[%emt 0:06:01]} 19. f4 {[%emt 0:04:41]} exf4 {[%emt 0:07:06]} 20. Bxf4 {[%emt 0:00:17]} Qc3 {[%emt 0:00:38]} 21. Nc4 {[%emt 0:01:21]} Nc5 {[%emt 0:00:14]} 22. Qe3 {[%emt 0:01:07]} Nxf4 {[%emt 0:06:18]} 23. Qxc3 {[%emt 0:06:28]} Ne2+ {[%emt 0:00:09]} 24. Kd2 {[%emt 0:00:13]} Ne4+ {[%emt 0:00:11]} 25. Kxe2 {[%emt 0:00:18]} Nxc3+ {[%emt 0:00:07]} 26. Kf3 {[%emt 0:01:17]} Nxb5 {[%emt 0:01:21]} 27. h4 {[%emt 0:00:35]} Nc3 {[%emt 0:01:25]} 28. Rde1 {[%emt 0:01:05]} Nxd5 {[%emt 0:00:53]} 29. Nxd6 {[%emt 0:00:24]} Bxd6 {[%emt 0:00:15]} 30. Rd1 {[%emt 0:00:09]} Nc3 {[%emt 0:00:19]} 31. Rxd6 {[%emt 0:00:11]} Nxa2 {[%emt 0:00:11]} 32. g6 {[%emt 0:00:36]} Nb4 {[%emt 0:00:44]} 33. c3 {[%emt 0:00:16]} a2 {[%emt 0:00:11]} 34. gxh7+ {[%emt 0:00:22]} Kxh7 {[%emt 0:00:15]} 35. Rdd1 {[%emt 0:00:07]} Nc2 {[%emt 0:00:10]} 0-1

[Event "European School-ch 2019"]
[Site "Mamaia"]
[Date "2019.05.31"]
[Round "1.16"]
[White "Simonyan, Grigori"]
[Black "Hussain, Adam"]
[Result "1-0"]
[ECO "C03"]
[WhiteElo "1979"]
[BlackElo "1475"]
[Annotator "NA"]
[PlyCount "89"]
[EventDate "2019.05.31"]
[EventType "swiss"]
[EventCountry "ROU"]
[SourceTitle "playchess.com"]
[Source "ChessBase"]
[SourceQuality "1"]
[TimeControl "40/5400+30:1800+30"]

1. e4 {[%emt 0:00:00]} e6 {[%emt 0:00:00]} 2. d4 {[%emt 0:00:00]} d5 {[%emt 0:00:00]} 3. Nd2 {[%emt 0:00:00]} Nc6 {[%emt 0:00:00]} 4. c3 {[%emt 0:04:25]} Nf6 {[%emt 0:01:21]} 5. e5 {[%emt 0:01:28]} Nd7 {[%emt 0:00:05]} 6. f4 {[%emt 0:05:50]} Be7 {[%emt 0:00:46]} 7. Ndf3 {[%emt 0:01:14]} f6 {[%emt 0:00:49]} 8. Bd3 {[%emt 0:01:51]} Rb8 {[%emt 0:01:25]} 9. a4 {[%emt 0:01:23]} a6 {[%emt 0:00:50]} 10. a5 {[%emt 0:00:28]} b6 {[%emt 0:04:45]} 11. axb6 {[%emt 0:03:29]} Rxb6 {[%emt 0:00:09]} 12. b4 {[%emt 0:00:09]} Na7 {[%emt 0:02:03]} 13. Nd2 {[%emt 0:03:40]} O-O {[%emt 0:03:52]} 14. Ngf3 {[%emt 0:04:22]} f5 {[%emt 0:06:00]} 15. Nb3 {[%emt 0:03:14]} Nb5 {[%emt 0:02:29]} 16. Bd2 {[%emt 0:00:14]} Nb8 {[%emt 0:01:06]} 17. Nc5 {[%emt 0:05:33]} h6 {[%emt 0:02:49]} 18. O-O {[%emt 0:01:39]} Rf7 {[%emt 0:01:29]} 19. h3 {[%emt 0:06:21]} g5 {[%emt 0:04:37]} 20. fxg5 {[%emt 0:00:30]} hxg5 {[%emt 0:00:27]} 21. g4 {[%emt 0:01:09]} Rg7 {[%emt 0:11:52]} 22. Kf2 {[%emt 0:07:56]} Qe8 {[%emt 0:10:11]} 23. Qc1 {[%emt 0:07:51]} Qd8 {[%emt 0:04:22]} 24. gxf5 {[%emt 0:08:14]} exf5 {[%emt 0:00:49]} 25. c4 {[%emt 0:00:07]} dxc4 {[%emt 0:06:20]} 26. Qxc4+ {[%emt 0:00:30]} Kh8 {[%emt 0:00:26]} 27. d5 {[%emt 0:00:34]} Qe8 {[%emt 0:08:35]} 28. Nd4 {[%emt 0:06:24]} Nxd4 {[%emt 0:05:20]} 29. Qxd4 {[%emt 0:00:04]} Rh6 {[%emt 0:00:40]} 30. Rae1 {[%emt 0:13:02]} Rh4 {[%emt 0:06:29]} 31. Qe3 {[%emt 0:03:39]} f4 {[%emt 0:04:27]} 32. Qe4 {[%emt 0:05:05]} f3 {[%emt 0:01:32]} 33. Qe3 {[%emt 0:04:49]} Bxh3 {[%emt 0:05:02]} 34. d6 {[%emt 0:01:04]} Bxf1 {[%emt 0:02:43]} 35. Rxf1 {[%emt 0:00:13]} Bd8 {[%emt 0:02:50]} 36. Bc3 {[%emt 0:00:50]} Rh2+ {[%emt 0:00:33]} 37. Ke1 {[%emt 0:00:05]} cxd6 {[%emt 0:00:44]} 38. e6 {[%emt 0:00:05]} dxc5 {[%emt 0:00:07]} 39. Qe5 {[%emt 0:00:39]} Qe7 40. Qxh2+ {[%emt 0:00:09]} Kg8 {[%emt 0:00:59]} 41. Bxg7 {[%emt 0:30:09]} Qxg7 {[%emt 0:30:40]} 42. Rxf3 {[%emt 0:01:41]} Nc6 {[%emt 0:00:42]} 43. Bc4 {[%emt 0:00:49]} Ne5 {[%emt 0:00:21]} 44. e7+ {[%emt 0:00:09]} Nxc4 {[%emt 0:00:11]} 45. exd8=Q+ {[%emt 0:00:05]} 1-0

[Event "European School-ch 2019"]
[Site "Mamaia"]
[Date "2019.05.31"]
[Round "1.17"]
[White "Demenshin, Semen"]
[Black "Dobre, Radu-Fabian"]
[Result "0-1"]
[ECO "E06"]
[WhiteElo "1446"]
[BlackElo "1978"]
[Annotator "NA"]
[PlyCount "84"]
[EventDate "2019.05.31"]
[EventType "swiss"]
[EventCountry "ROU"]
[SourceTitle "playchess.com"]
[Source "ChessBase"]
[SourceQuality "1"]
[TimeControl "40/5400+30:1800+30"]

1. d4 {[%emt 0:00:00]} d5 {[%emt 0:00:00]} 2. c4 {[%emt 0:00:00]} e6 {[%emt 0:00:00]} 3. g3 {[%emt 0:00:02]} Nf6 {[%emt 0:00:00]} 4. Bg2 {[%emt 0:00:21]} Be7 {[%emt 0:00:00]} 5. Nf3 {[%emt 0:00:13]} O-O {[%emt 0:00:00]} 6. O-O {[%emt 0:00:07]} b6 {[%emt 0:00:02]} 7. Ne5 {[%emt 0:00:27]} Bb7 {[%emt 0:00:08]} 8. Nc3 {[%emt 0:00:13]} Na6 {[%emt 0:00:13]} 9. b3 {[%emt 0:02:24]} c5 {[%emt 0:00:57]} 10. Bb2 {[%emt 0:02:20]} Rc8 {[%emt 0:01:52]} 11. Nb5 {[%emt 0:04:12]} Ra8 {[%emt 0:01:26]} 12. Rc1 {[%emt 0:07:31]} Ne4 {[%emt 0:02:02]} 13. f3 {[%emt 0:08:28]} Nf6 {[%emt 0:01:35]} 14. Re1 {[%emt 0:02:41]} dxc4 {[%emt 0:00:39]} 15. Rxc4 {[%emt 0:03:14]} Nb4 {[%emt 0:04:12]} 16. a4 {[%emt 0:11:52]} a6 {[%emt 0:00:43]} 17. Na3 {[%emt 0:02:52]} Bd5 {[%emt 0:00:52]} 18. Rc1 {[%emt 0:03:12]} cxd4 {[%emt 0:01:07]} 19. Kh1 {[%emt 0:10:47]} Qb8 {[%emt 0:14:27]} 20. Bxd4 {[%emt 0:09:50]} Rd8 {[%emt 0:01:21]} 21. Nac4 {[%emt 0:01:31]} Bxc4 {[%emt 0:05:15]} 22. Rxc4 {[%emt 0:07:24]} b5 {[%emt 0:05:49]} 23. Rc1 {[%emt 0:01:29]} Qd6 {[%emt 0:00:14]} 24. f4 {[%emt 0:05:06]} Rac8 {[%emt 0:02:34]} 25. e3 {[%emt 0:00:42]} Nfd5 {[%emt 0:00:52]} 26. Be4 {[%emt 0:09:40]} g6 {[%emt 0:04:43]} 27. h4 {[%emt 0:02:39]} Rxc1 {[%emt 0:08:54]} 28. Qxc1 {[%emt 0:00:37]} f6 {[%emt 0:00:13]} 29. Nf3 {[%emt 0:04:02]} Qd7 {[%emt 0:02:15]} 30. Qb2 {[%emt 0:00:24]} Kf7 {[%emt 0:00:15]} 31. g4 {[%emt 0:00:33]} e5 {[%emt 0:01:57]} 32. fxe5 {[%emt 0:00:33]} Qxg4 {[%emt 0:00:01]} 33. exf6 {[%emt 0:00:27]} Qxe4 {[%emt 0:00:02]} 34. Qg2 {[%emt 0:00:29]} Kg8 {[%emt 0:02:43]} 35. Rf1 {[%emt 0:00:35]} Bxf6 {[%emt 0:00:18]} 36. Bxf6 {[%emt 0:00:20]} Nxf6 {[%emt 0:00:02]} 37. Qg5 {[%emt 0:00:36]} Rd1 {[%emt 0:01:16]} 38. Rxd1 {[%emt 0:00:29]} Qxf3+ {[%emt 0:00:01]} 39. Qg2 {[%emt 0:00:36]} Qxd1+ {[%emt 0:00:07]} 40. Kh2 {[%emt 0:00:12]} Nd3 {[%emt 0:00:04]} 41. Qg5 {[%emt 0:30:41]} Qe2+ {[%emt 0:30:14]} 42. Kg1 {[%emt 0:00:22]} Qg4+ {[%emt 0:00:08]} 0-1